fUSD/lending_fUSD_20250105
["ID","MTS","AMOUNT","RATE_DAILY","PERIOD"]
[347717279,1736079664062,1214.47261485,0.00022,120]
[347717281,1736079793672,500.0,0.00021999,120]
[347717282,1736079795728,2000.0,0.00021999,120]
[347717283,1736079833400,200.0,0.00021999,120]
[347717311,1736080231952,-1500.0,7.315e-05,2]
[347717312,1736080231962,-716.27,7.477e-05,2]
[347717313,1736080231971,-250.0,7.494e-05,2]
[347717314,1736080231981,-19923.0,7.567e-05,2]
[347717315,1736080231990,-3498.78,7.672e-05,2]
[347717317,1736080237620,-578.34999975,7.672e-05,2]
[347717318,1736080237677,-15485.34000025,7.672e-05,2]
[347717319,1736080237688,-4428.33410262,7.672e-05,2]
[347717320,1736080237699,-10407.38250188,7.672e-05,2]
[347717321,1736080239506,-19408.78465155,7.672e-05,2]
[347717322,1736080239517,-1037.90427935,7.672e-05,2]
[347717323,1736080239528,-324.22381445,7.672e-05,2]
[347717324,1736080239539,-630.0093386,7.672e-05,2]
[347717325,1736080239567,-3977.33999999,7.672e-05,2]
[347717326,1736080239677,-902.1172775,7.672e-05,2]
[347717327,1736080239690,-963.19752,7.672e-05,2]
[347717328,1736080239701,-3190.82310056,7.672e-05,2]
[347717329,1736080239711,-403.47,7.791e-05,2]
[347717330,1736080239720,-437.29,7.8e-05,2]
[347717331,1736080239731,-771.75,7.8e-05,2]
[347717332,1736080239741,-54.92692015,7.8e-05,2]
[347717333,1736080239769,-716.82307985,7.8e-05,2]
[347717334,1736080239779,-437.68,7.8e-05,2]
[347717335,1736080239789,-4297.71,7.813e-05,2]
[347717336,1736080239798,-771.75,7.82e-05,2]
[347717337,1736080239808,-437.68,7.82e-05,2]
[347717338,1736080239817,-771.75,7.82e-05,2]
[347717339,1736080239826,-437.68,7.82e-05,2]
[347717340,1736080239835,-754.5,7.82e-05,2]
[347717341,1736080239844,-437.68,7.82e-05,2]
[347717342,1736080239853,-3366.99,7.932e-05,2]
[347717343,1736080239863,-771.75,7.94e-05,2]
[347717344,1736080239872,-437.68,7.94e-05,2]
[347717345,1736080239882,-250.0,7.944e-05,2]
[347717346,1736080239891,-437.68,7.95e-05,2]
[347717347,1736080239901,-771.75,7.95e-05,2]
[347717348,1736080239910,-93116.71396888,8e-05,2]
[347717349,1736080239919,-437.68,8.081e-05,2]
[347717350,1736080239929,-771.75,8.081e-05,2]
[347717351,1736080239938,-1268.62,8.084e-05,2]
[347717352,1736080239947,-250000.0,8.119e-05,2]
[347717353,1736080239956,-624.9938,8.119e-05,2]
[347717354,1736080239965,-436.94,8.192e-05,2]
[347717355,1736080239975,-436.94,8.192e-05,2]
[347717356,1736080239984,-436.94,8.192e-05,2]
[347717357,1736080239993,-436.94,8.192e-05,2]
[347717358,1736080240002,-978.7,8.218e-05,2]
[347717359,1736080240011,-1644.92,8.219e-05,2]
[347717360,1736080240021,-156.211275,8.219e-05,2]
[347717361,1736080240030,-155.848017,8.219e-05,2]
[347717362,1736080240039,-3048.57,8.219e-05,2]
[347717363,1736080240048,-176.67509475,8.219e-05,2]
[347717364,1736080240058,-500.0,8.219e-05,2]
[347717365,1736080240067,-500.0,8.219e-05,2]
[347717366,1736080240079,-500.0,8.219e-05,2]
[347717367,1736080240089,-500.0,8.219e-05,2]
[347717368,1736080240098,-5235.68,8.219e-05,2]
[347717369,1736080240107,-500.0,8.219e-05,2]
[347717370,1736080240117,-500.0,8.219e-05,2]
[347717371,1736080240126,-300.0,8.219e-05,2]
[347717372,1736080240135,-500.0,8.219e-05,2]
[347717373,1736080240144,-3246.15,8.219e-05,2]
[347717374,1736080240154,-500.0,8.219e-05,2]
[347717375,1736080240163,-500.0,8.219e-05,2]
[347717376,1736080240172,-500.0,8.219e-05,2]
[347717377,1736080240181,-500.0,8.219e-05,2]
[347717378,1736080240191,-500.0,8.219e-05,2]
[347717379,1736080240200,-2892.65,8.219e-05,2]
[347717380,1736080240210,-500.0,8.219e-05,2]
[347717381,1736080240219,-500.0,8.219e-05,2]
[347717382,1736080240229,-500.0,8.219e-05,2]
[347717383,1736080240238,-6257.6,8.219e-05,2]
[347717384,1736080240247,-500.0,8.219e-05,2]
[347717385,1736080240256,-2746.81,8.219e-05,2]
[347717386,1736080240266,-500.0,8.219e-05,2]
[347717387,1736080240275,-500.0,8.219e-05,2]
[347717388,1736080240283,-500.0,8.219e-05,2]
[347717389,1736080240292,-1616.02,8.219e-05,2]
[347717390,1736080240302,-500.0,8.219e-05,2]
[347717391,1736080240311,-500.0,8.219e-05,2]
[347717392,1736080240321,-500.0,8.219e-05,2]
[347717393,1736080240330,-500.0,8.219e-05,2]
[347717394,1736080240339,-500.0,8.219e-05,2]
[347717395,1736080240348,-500.0,8.219e-05,2]
[347717396,1736080240357,-500.0,8.219e-05,2]
[347717397,1736080240366,-500.0,8.219e-05,2]
[347717398,1736080240375,-500.0,8.219e-05,2]
[347717399,1736080240384,-500.0,8.219e-05,2]
[347717400,1736080240394,-957.81,8.219e-05,2]
[347717401,1736080240403,-500.0,8.219e-05,2]
[347717402,1736080240413,-500.0,8.219e-05,2]
[347717403,1736080240423,-500.0,8.219e-05,2]
[347717404,1736080240432,-500.0,8.219e-05,2]
[347717405,1736080240443,-500.0,8.219e-05,2]
[347717406,1736080240452,-634.21,8.219e-05,2]
[347717407,1736080240461,-500.0,8.219e-05,2]
[347717408,1736080240470,-500.0,8.219e-05,2]
[347717409,1736080240480,-500.0,8.219e-05,2]
[347717410,1736080240489,-500.0,8.219e-05,2]
[347717411,1736080240499,-500.0,8.219e-05,2]
[347717412,1736080240508,-500.0,8.219e-05,2]
[347717413,1736080240517,-500.0,8.219e-05,2]
[347717414,1736080240526,-500.0,8.219e-05,2]
[347717415,1736080240535,-500.0,8.219e-05,2]
[347717416,1736080240546,-500.0,8.219e-05,2]
[347717417,1736080240554,-500.0,8.219e-05,2]
[347717418,1736080240564,-500.0,8.219e-05,2]
[347717419,1736080240574,-500.0,8.219e-05,2]
[347717420,1736080240584,-500.0,8.219e-05,2]
[347717421,1736080240593,-500.0,8.219e-05,2]
[347717422,1736080240602,-530.25,8.219e-05,2]
[347717423,1736080240612,-500.0,8.219e-05,2]
[347717424,1736080240621,-500.0,8.219e-05,2]
[347717425,1736080240630,-500.0,8.219e-05,2]
[347717426,1736080240639,-522.05,8.219e-05,2]
[347717427,1736080240648,-500.0,8.219e-05,2]
[347717428,1736080240657,-500.0,8.219e-05,2]
[347717429,1736080240666,-500.0,8.219e-05,2]
[347717430,1736080240676,-500.0,8.219e-05,2]
[347717431,1736080240685,-500.0,8.219e-05,2]
[347717432,1736080240694,-600.43,8.219e-05,2]
[347717433,1736080240703,-500.0,8.219e-05,2]
[347717434,1736080240712,-500.0,8.219e-05,2]
[347717435,1736080240721,-500.0,8.219e-05,2]
[347717436,1736080240730,-500.0,8.219e-05,2]
[347717437,1736080240740,-832.35,8.219e-05,2]
[347717438,1736080240749,-500.0,8.219e-05,2]
[347717439,1736080240758,-625.59,8.219e-05,2]
[347717440,1736080240768,-500.0,8.219e-05,2]
[347717441,1736080240778,-500.0,8.219e-05,2]
[347717442,1736080240787,-500.0,8.219e-05,2]
[347717443,1736080240796,-500.0,8.219e-05,2]
[347717444,1736080240805,-500.0,8.219e-05,2]
[347717445,1736080240814,-500.0,8.219e-05,2]
[347717446,1736080240823,-500.0,8.219e-05,2]
[347717447,1736080240833,-500.0,8.219e-05,2]
[347717448,1736080240844,-500.0,8.219e-05,2]
[347717449,1736080240853,-500.0,8.219e-05,2]
[347717450,1736080240862,-191.19226379,8.219e-05,2]
[347717451,1736080240871,-500.0,8.219e-05,2]
[347717452,1736080240882,-500.0,8.219e-05,2]
[347717453,1736080240891,-500.0,8.219e-05,2]
[347717454,1736080240902,-500.0,8.219e-05,2]
[347717455,1736080240912,-500.0,8.219e-05,2]
[347717456,1736080240921,-500.0,8.219e-05,2]
[347717457,1736080240931,-813.5,8.219e-05,2]
[347717458,1736080240941,-536.25117978,8.219e-05,2]
[347717459,1736080240950,-500.0,8.219e-05,2]
[347717460,1736080240961,-500.0,8.219e-05,2]
[347717461,1736080240971,-500.0,8.219e-05,2]
[347717462,1736080240980,-500.0,8.219e-05,2]
[347717463,1736080240989,-818.24,8.219e-05,2]
[347717464,1736080240998,-500.0,8.219e-05,2]
[347717465,1736080241007,-6082.16,8.219e-05,2]
[347717466,1736080241016,-500.0,8.219e-05,2]
[347717467,1736080241025,-500.0,8.219e-05,2]
[347717468,1736080241034,-500.0,8.219e-05,2]
[347717469,1736080241043,-500.0,8.219e-05,2]
[347717470,1736080241052,-500.0,8.219e-05,2]
[347717471,1736080241063,-500.0,8.219e-05,2]
[347717472,1736080241076,-500.0,8.219e-05,2]
[347717473,1736080241085,-500.0,8.219e-05,2]
[347717474,1736080241094,-500.0,8.219e-05,2]
[347717475,1736080241104,-500.0,8.219e-05,2]
[347717476,1736080241114,-869.6,8.219e-05,2]
[347717477,1736080241123,-500.0,8.219e-05,2]
[347717478,1736080241134,-500.0,8.219e-05,2]
[347717479,1736080241144,-500.0,8.219e-05,2]
[347717480,1736080241153,-500.0,8.219e-05,2]
[347717481,1736080241162,-458.31105258,8.219e-05,2]
[347717482,1736080241170,-334.54494332,8.219e-05,2]
[347717483,1736080241179,-585.62,8.219e-05,2]
[347717484,1736080241189,-500.0,8.219e-05,2]
[347717485,1736080241198,-613.5,8.219e-05,2]
[347717486,1736080241207,-500.0,8.219e-05,2]
[347717487,1736080241216,-500.0,8.219e-05,2]
[347717488,1736080241226,-500.0,8.219e-05,2]
[347717489,1736080241236,-500.0,8.219e-05,2]
[347717490,1736080241245,-500.0,8.219e-05,2]
[347717491,1736080241488,-500.0,8.219e-05,2]
[347717492,1736080241499,-500.0,8.219e-05,2]
[347717493,1736080241509,-500.0,8.219e-05,2]
[347717494,1736080241518,-500.0,8.219e-05,2]
[347717495,1736080241527,-500.0,8.219e-05,2]
[347717496,1736080241538,-2245.29,8.219e-05,2]
[347717497,1736080241547,-500.0,8.219e-05,2]
[347717498,1736080241557,-350.61041521,8.219e-05,2]
[347717499,1736080241567,-500.0,8.219e-05,2]
[347717500,1736080241576,-500.0,8.219e-05,2]
[347717501,1736080241586,-500.0,8.219e-05,2]
[347717502,1736080241595,-500.0,8.219e-05,2]
[347717503,1736080241605,-500.0,8.219e-05,2]
[347717504,1736080241616,-500.0,8.219e-05,2]
[347717505,1736080241626,-500.0,8.219e-05,2]
[347717506,1736080241635,-500.0,8.219e-05,2]
[347717507,1736080241644,-500.0,8.219e-05,2]
[347717508,1736080241654,-436.24106682,8.219e-05,2]
[347717509,1736080241663,-500.0,8.219e-05,2]
[347717510,1736080241672,-157.22953115,8.219e-05,2]
[347717511,1736080241682,-500.0,8.219e-05,2]
[347717512,1736080241692,-500.0,8.219e-05,2]
[347717513,1736080241701,-581.99,8.219e-05,2]
[347717514,1736080241710,-500.0,8.219e-05,2]
[347717515,1736080241720,-500.0,8.219e-05,2]
[347717516,1736080241729,-500.0,8.219e-05,2]
[347717517,1736080241738,-500.0,8.219e-05,2]
[347717518,1736080241747,-500.0,8.219e-05,2]
[347717519,1736080241755,-589.2,8.219e-05,2]
[347717520,1736080241764,-500.0,8.219e-05,2]
[347717521,1736080241773,-500.0,8.219e-05,2]
[347717522,1736080241783,-500.0,8.219e-05,2]
[347717523,1736080241792,-599.08,8.219e-05,2]
[347717524,1736080241801,-500.0,8.219e-05,2]
[347717525,1736080241810,-544.32,8.219e-05,2]
[347717526,1736080241820,-500.0,8.219e-05,2]
[347717527,1736080241830,-500.0,8.219e-05,2]
[347717528,1736080241840,-500.0,8.219e-05,2]
[347717529,1736080241850,-500.0,8.219e-05,2]
[347717530,1736080241859,-813.47,8.219e-05,2]
[347717531,1736080241868,-500.0,8.219e-05,2]
[347717532,1736080241877,-500.0,8.219e-05,2]
[347717533,1736080241886,-306.04241996,8.219e-05,2]
[347717534,1736080241896,-500.0,8.219e-05,2]
[347717535,1736080241905,-540.37,8.219e-05,2]
[347717536,1736080241914,-500.0,8.219e-05,2]
[347717537,1736080241923,-500.0,8.219e-05,2]
[347717538,1736080241932,-500.0,8.219e-05,2]
[347717539,1736080241942,-500.0,8.219e-05,2]
[347717540,1736080241951,-500.0,8.219e-05,2]
[347717541,1736080241960,-500.0,8.219e-05,2]
[347717542,1736080241969,-831.66,8.219e-05,2]
[347717543,1736080241980,-500.0,8.219e-05,2]
[347717544,1736080241990,-500.0,8.219e-05,2]
[347717545,1736080241999,-500.0,8.219e-05,2]
[347717546,1736080242008,-500.0,8.219e-05,2]
[347717547,1736080242018,-500.0,8.219e-05,2]
[347717548,1736080242028,-500.0,8.219e-05,2]
[347717549,1736080242038,-500.0,8.219e-05,2]
[347717550,1736080242050,-500.0,8.219e-05,2]
[347717551,1736080242059,-500.0,8.219e-05,2]
[347717552,1736080242070,-514.51,8.219e-05,2]
[347717553,1736080242084,-500.0,8.219e-05,2]
[347717554,1736080242093,-500.0,8.219e-05,2]
[347717555,1736080242104,-500.0,8.219e-05,2]
[347717556,1736080242115,-500.0,8.219e-05,2]
[347717557,1736080242125,-500.0,8.219e-05,2]
[347717558,1736080242134,-500.0,8.219e-05,2]
[347717559,1736080242144,-500.0,8.219e-05,2]
[347717560,1736080242154,-500.0,8.219e-05,2]
[347717561,1736080242163,-500.0,8.219e-05,2]
[347717562,1736080242173,-500.0,8.219e-05,2]
[347717563,1736080242182,-2486.44,8.219e-05,2]
[347717564,1736080242193,-500.0,8.219e-05,2]
[347717565,1736080242202,-500.0,8.219e-05,2]
[347717566,1736080242211,-500.0,8.219e-05,2]
[347717567,1736080242220,-500.0,8.219e-05,2]
[347717568,1736080242229,-500.0,8.219e-05,2]
[347717569,1736080242238,-500.0,8.219e-05,2]
[347717570,1736080242248,-500.0,8.219e-05,2]
[347717571,1736080242257,-500.0,8.219e-05,2]
[347717572,1736080242266,-500.0,8.219e-05,2]
[347717573,1736080242276,-593.4,8.219e-05,2]
[347717575,1736080242286,-500.0,8.219e-05,2]
[347717577,1736080242296,-500.0,8.219e-05,2]
[347717578,1736080242305,-500.0,8.219e-05,2]
[347717579,1736080242314,-500.0,8.219e-05,2]
[347717580,1736080242324,-500.0,8.219e-05,2]
[347717581,1736080242333,-500.0,8.219e-05,2]
[347717582,1736080242342,-500.0,8.219e-05,2]
[347717583,1736080242351,-364.44866892,8.219e-05,2]
[347717584,1736080242360,-500.0,8.219e-05,2]
[347717585,1736080242370,-500.0,8.219e-05,2]
[347717586,1736080242379,-500.0,8.219e-05,2]
[347717587,1736080242388,-500.0,8.219e-05,2]
[347717588,1736080242398,-500.0,8.219e-05,2]
[347717589,1736080242406,-500.0,8.219e-05,2]
[347717590,1736080242415,-500.0,8.219e-05,2]
[347717591,1736080242425,-500.0,8.219e-05,2]
[347717592,1736080242434,-500.0,8.219e-05,2]
[347717593,1736080242445,-500.0,8.219e-05,2]
[347717594,1736080242454,-500.0,8.219e-05,2]
[347717595,1736080242463,-1602.77,8.219e-05,2]
[347717596,1736080242472,-500.0,8.219e-05,2]
[347717597,1736080242481,-500.0,8.219e-05,2]
[347717598,1736080242490,-500.0,8.219e-05,2]
[347717599,1736080242500,-500.0,8.219e-05,2]
[347717600,1736080242509,-500.0,8.219e-05,2]
[347717601,1736080242520,-894.44,8.219e-05,2]
[347717602,1736080242529,-500.0,8.219e-05,2]
[347717603,1736080242539,-500.0,8.219e-05,2]
[347717604,1736080242549,-500.0,8.219e-05,2]
[347717605,1736080242558,-540.74,8.219e-05,2]
[347717606,1736080242567,-500.0,8.219e-05,2]
[347717607,1736080242577,-500.0,8.219e-05,2]
[347717608,1736080242588,-115.62822299,8.219e-05,2]
[347717609,1736080243063,-384.37177701,8.219e-05,2]
[347717610,1736080243079,-500.0,8.219e-05,2]
[347717611,1736080243089,-746.86,8.219e-05,2]
[347717612,1736080243099,-500.0,8.219e-05,2]
[347717613,1736080243109,-500.0,8.219e-05,2]
[347717614,1736080243121,-500.0,8.219e-05,2]
[347717615,1736080243131,-500.0,8.219e-05,2]
[347717616,1736080243141,-500.0,8.219e-05,2]
[347717617,1736080243155,-503.47,8.219e-05,2]
[347717618,1736080243167,-500.0,8.219e-05,2]
[347717619,1736080243176,-500.0,8.219e-05,2]
[347717620,1736080243186,-500.0,8.219e-05,2]
[347717621,1736080243197,-500.0,8.219e-05,2]
[347717622,1736080243207,-500.0,8.219e-05,2]
[347717623,1736080243216,-1058.88,8.219e-05,2]
[347717624,1736080243226,-1850.61,8.219e-05,2]
[347717625,1736080243235,-500.0,8.219e-05,2]
[347717626,1736080243244,-598.48,8.219e-05,2]
[347717627,1736080243253,-500.0,8.219e-05,2]
[347717628,1736080243263,-500.0,8.219e-05,2]
[347717629,1736080243272,-500.0,8.219e-05,2]
[347717630,1736080243281,-976.39,8.219e-05,2]
[347717631,1736080243291,-500.0,8.219e-05,2]
[347717632,1736080243300,-523.35398907,8.219e-05,2]
[347717633,1736080243309,-500.0,8.219e-05,2]
[347717634,1736080243319,-500.0,8.219e-05,2]
[347717635,1736080243329,-10023.3,8.219e-05,2]
[347717636,1736080243338,-785.66,8.219e-05,2]
[347717637,1736080243349,-464.94216254,8.219e-05,2]
[347717638,1736080243358,-500.0,8.219e-05,2]
[347717639,1736080243367,-500.0,8.219e-05,2]
[347717640,1736080243377,-500.0,8.219e-05,2]
[347717641,1736080243386,-500.0,8.219e-05,2]
[347717642,1736080243396,-500.0,8.219e-05,2]
[347717643,1736080243405,-500.0,8.219e-05,2]
[347717644,1736080243415,-863.14,8.219e-05,2]
[347717645,1736080243425,-1124.55,8.219e-05,2]
[347717646,1736080243435,-753.99,8.219e-05,2]
[347717647,1736080243445,-500.0,8.219e-05,2]
[347717648,1736080243455,-500.0,8.219e-05,2]
[347717649,1736080243465,-500.0,8.219e-05,2]
[347717650,1736080243474,-500.0,8.219e-05,2]
[347717651,1736080243483,-500.0,8.219e-05,2]
[347717652,1736080243492,-500.0,8.219e-05,2]
[347717653,1736080243502,-500.0,8.219e-05,2]
[347717654,1736080243512,-500.0,8.219e-05,2]
[347717655,1736080243521,-950.36,8.219e-05,2]
[347717656,1736080243531,-500.0,8.219e-05,2]
[347717657,1736080243540,-731.56,8.219e-05,2]
[347717658,1736080243551,-535.78,8.219e-05,2]
[347717659,1736080243561,-668.64,8.219e-05,2]
[347717660,1736080243570,-500.0,8.219e-05,2]
[347717661,1736080243579,-500.0,8.219e-05,2]
[347717662,1736080243588,-785.58,8.219e-05,2]
[347717663,1736080243597,-1650.61,8.219e-05,2]
[347717664,1736080243606,-500.0,8.219e-05,2]
[347717665,1736080243616,-722.21,8.219e-05,2]
[347717666,1736080243625,-500.0,8.219e-05,2]
[347717667,1736080243635,-991.98,8.219e-05,2]
[347717668,1736080243645,-500.0,8.219e-05,2]
[347717669,1736080243654,-511.2,8.219e-05,2]
[347717670,1736080243664,-500.0,8.219e-05,2]
[347717671,1736080243673,-500.0,8.219e-05,2]
[347717672,1736080243685,-500.0,8.219e-05,2]
[347717673,1736080243695,-500.0,8.219e-05,2]
[347717674,1736080243704,-500.0,8.219e-05,2]
[347717675,1736080243713,-500.0,8.219e-05,2]
[347717676,1736080243722,-500.0,8.219e-05,2]
[347717677,1736080243731,-500.0,8.219e-05,2]
[347717678,1736080243741,-500.0,8.219e-05,2]
[347717679,1736080243750,-500.0,8.219e-05,2]
[347717680,1736080243759,-732.45,8.219e-05,2]
[347717681,1736080243769,-500.0,8.219e-05,2]
[347717682,1736080243778,-500.0,8.219e-05,2]
[347717683,1736080243788,-1050.73,8.219e-05,2]
[347717684,1736080243798,-500.0,8.219e-05,2]
[347717686,1736080243807,-500.0,8.219e-05,2]
[347717687,1736080243816,-500.0,8.219e-05,2]
[347717688,1736080243824,-500.0,8.219e-05,2]
[347717689,1736080243834,-503.66,8.219e-05,2]
[347717690,1736080243842,-500.0,8.219e-05,2]
[347717691,1736080243851,-500.0,8.219e-05,2]
[347717692,1736080243860,-500.0,8.219e-05,2]
[347717693,1736080243869,-1232.69,8.219e-05,2]
[347717694,1736080243879,-500.0,8.219e-05,2]
[347717695,1736080243888,-773.19,8.219e-05,2]
[347717696,1736080243897,-500.0,8.219e-05,2]
[347717697,1736080243907,-500.0,8.219e-05,2]
[347717698,1736080243916,-759.87,8.219e-05,2]
[347717699,1736080243925,-306.711377,8.219e-05,2]
[347717700,1736080243934,-500.0,8.219e-05,2]
[347717701,1736080243943,-500.0,8.219e-05,2]
[347717702,1736080243953,-500.0,8.219e-05,2]
[347717703,1736080243963,-500.0,8.219e-05,2]
[347717704,1736080243972,-500.0,8.219e-05,2]
[347717705,1736080243981,-500.0,8.219e-05,2]
[347717706,1736080243991,-500.0,8.219e-05,2]
[347717707,1736080244001,-500.0,8.219e-05,2]
[347717708,1736080244010,-500.0,8.219e-05,2]
[347717709,1736080244019,-500.0,8.219e-05,2]
[347717710,1736080244029,-2193.02,8.219e-05,2]
[347717711,1736080244038,-500.0,8.219e-05,2]
[347717712,1736080244047,-500.0,8.219e-05,2]
[347717713,1736080244056,-860.49,8.219e-05,2]
[347717714,1736080244065,-766.35,8.219e-05,2]
[347717715,1736080244082,-1210.17,8.219e-05,2]
[347717716,1736080244091,-500.0,8.219e-05,2]
[347717717,1736080244101,-500.0,8.219e-05,2]
[347717718,1736080244110,-1591.42,8.219e-05,2]
[347717719,1736080244121,-500.0,8.219e-05,2]
[347717720,1736080244130,-739.43,8.219e-05,2]
[347717721,1736080244139,-1271.87,8.219e-05,2]
[347717722,1736080244149,-500.0,8.219e-05,2]
[347717723,1736080244158,-500.0,8.219e-05,2]
[347717724,1736080244167,-500.0,8.219e-05,2]
[347717725,1736080244176,-150.0,8.219e-05,2]
[347717726,1736080244186,-1196.04,8.219e-05,2]
[347717727,1736080244198,-500.0,8.219e-05,2]
[347717728,1736080244208,-500.0,8.219e-05,2]
[347717729,1736080244218,-2136.27,8.219e-05,2]
[347717730,1736080244227,-852.87,8.219e-05,2]
[347717731,1736080244237,-432.01373313,8.219e-05,2]
[347717732,1736080244246,-500.0,8.219e-05,2]
[347717733,1736080244255,-500.0,8.219e-05,2]
[347717734,1736080244264,-500.0,8.219e-05,2]
[347717735,1736080244273,-511.67,8.219e-05,2]
[347717736,1736080244282,-708.89,8.219e-05,2]
[347717737,1736080244292,-500.0,8.219e-05,2]
[347717738,1736080244301,-500.0,8.219e-05,2]
[347717739,1736080244311,-698.53,8.219e-05,2]
[347717740,1736080244320,-1544.38,8.219e-05,2]
[347717741,1736080244330,-500.0,8.219e-05,2]
[347717742,1736080244339,-500.0,8.219e-05,2]
[347717743,1736080244348,-500.0,8.219e-05,2]
[347717744,1736080244357,-500.0,8.219e-05,2]
[347717745,1736080244369,-500.0,8.219e-05,2]
[347717746,1736080244379,-500.0,8.219e-05,2]
[347717747,1736080244389,-954.05,8.219e-05,2]
[347717748,1736080244399,-500.0,8.219e-05,2]
[347717749,1736080244411,-500.0,8.219e-05,2]
[347717750,1736080244420,-655.42,8.219e-05,2]
[347717751,1736080244429,-500.0,8.219e-05,2]
[347717752,1736080244440,-500.0,8.219e-05,2]
[347717753,1736080244449,-500.0,8.219e-05,2]
[347717754,1736080244459,-500.0,8.219e-05,2]
[347717755,1736080244468,-500.0,8.219e-05,2]
[347717756,1736080244477,-500.0,8.219e-05,2]
[347717757,1736080244487,-500.0,8.219e-05,2]
[347717758,1736080244499,-2478.54,8.219e-05,2]
[347717759,1736080244510,-500.0,8.219e-05,2]
[347717760,1736080244520,-500.0,8.219e-05,2]
[347717761,1736080244530,-500.0,8.219e-05,2]
[347717762,1736080244541,-993.2,8.219e-05,2]
[347717763,1736080244551,-801.36,8.219e-05,2]
[347717764,1736080244560,-500.0,8.219e-05,2]
[347717765,1736080244570,-500.0,8.219e-05,2]
[347717766,1736080244578,-1410.21,8.219e-05,2]
[347717767,1736080244588,-500.0,8.219e-05,2]
[347717768,1736080244599,-3025.51,8.219e-05,2]
[347717769,1736080244609,-500.0,8.219e-05,2]
[347717770,1736080244619,-158.54490456,8.219e-05,2]
[347717771,1736080244628,-500.0,8.219e-05,2]
[347717772,1736080244638,-500.0,8.219e-05,2]
[347717773,1736080244648,-371.89187931,8.219e-05,2]
[347717774,1736080244657,-642.56,8.219e-05,2]
[347717775,1736080244667,-1404.65,8.219e-05,2]
[347717776,1736080244676,-500.0,8.219e-05,2]
[347717777,1736080244685,-500.0,8.219e-05,2]
[347717778,1736080244697,-500.0,8.219e-05,2]
[347717779,1736080244706,-500.0,8.219e-05,2]
[347717780,1736080244716,-500.0,8.219e-05,2]
[347717781,1736080244726,-500.0,8.219e-05,2]
[347717782,1736080244735,-500.0,8.219e-05,2]
[347717783,1736080244744,-737.08,8.219e-05,2]
[347717784,1736080244753,-500.0,8.219e-05,2]
[347717785,1736080244763,-950.12,8.219e-05,2]
[347717786,1736080244772,-500.0,8.219e-05,2]
[347717787,1736080244781,-762.46,8.219e-05,2]
[347717788,1736080244790,-1387.95,8.219e-05,2]
[347717789,1736080244799,-746.3,8.219e-05,2]
[347717790,1736080244808,-754.35,8.219e-05,2]
[347717791,1736080244817,-500.0,8.219e-05,2]
[347717792,1736080244826,-500.0,8.219e-05,2]
[347717793,1736080244835,-650.91,8.219e-05,2]
[347717794,1736080244844,-500.0,8.219e-05,2]
[347717795,1736080244853,-500.0,8.219e-05,2]
[347717796,1736080244863,-500.0,8.219e-05,2]
[347717797,1736080244872,-723.11,8.219e-05,2]
[347717798,1736080244882,-3070.38,8.219e-05,2]
[347717799,1736080244891,-390.89702807,8.219e-05,2]
[347717800,1736080244900,-500.0,8.219e-05,2]
[347717801,1736080244910,-968.27,8.219e-05,2]
[347717802,1736080244919,-500.0,8.219e-05,2]
[347717803,1736080244928,-1308.02,8.219e-05,2]
[347717804,1736080244937,-500.0,8.219e-05,2]
[347717805,1736080244948,-500.0,8.219e-05,2]
[347717806,1736080245189,-500.0,8.219e-05,2]
[347717807,1736080245199,-2749.24,8.219e-05,2]
[347717808,1736080245208,-500.0,8.219e-05,2]
[347717809,1736080245217,-500.0,8.219e-05,2]
[347717810,1736080245227,-831.84,8.219e-05,2]